bitfinex/quotes_ETHUSD_20240618
["timestamp","ask_amount","ask_price","bid_price","bid_amount"]
[1718721141519,2.91274,3433.2,3431.6,0.05827119]
[1718721141756,3.14996,3433.1,3431.7,0.68982712]
[1718721141932,2.91282,3433.1,3431.7,0.68982712]
[1718721142114,2.913,3432.9,3431.7,0.68982712]
[1718721142756,2.91284,3433.1,3431.7,0.68982712]
[1718721142931,2.91299,3432.9,3431.6,3.0]
[1718721143421,5.82624,3432.8,3431.6,3.0]
[1718721143642,2.91309,3432.8,3431.6,3.0]
[1718721143921,2.91326,3432.6,3431.6,3.76024279]
[1718721144337,2.91316,3432.7,3431.6,3.0]
[1718721144338,2.91339,3432.5,3431.6,3.0]
[1718721144551,2.91342,3432.4,3431.5,2.087]
[1718721144750,2.5211,3432.8,3431.4,3.0]
[1718721144933,2.91393,3431.8,3431.2,3.0]
[1718721145228,2.91359,3432.2,3430.9,0.066]
[1718721145453,2.91359,3432.2,3431.1,2.087]
[1718721145679,2.91336,3432.5,3431.2,0.04853957]
[1718721145855,0.84131,3432.7,3431.6,2.087]
[1718721145856,3.75449,3432.7,3431.6,2.087]
[1718721146191,0.666763,3432.6,3431.7,0.066]
[1718721146350,2.91291,3433.0,3431.7,0.09208244]
[1718721146539,2.91282,3433.1,3431.8,0.02608167]
[1718721146737,0.825622,3433.0,3431.8,0.02608167]
[1718721146938,2.91257,3433.4,3432.0,2.087]
[1718721147185,3.75218,3433.5,3432.1,0.049477]
[1718721147382,2.91257,3433.4,3432.0,3.839]
[1718721147676,3.75218,3433.5,3432.1,3.3839]
[1718721147677,3.579195,3433.3,3432.1,3.3839]
[1718721147836,0.666475,3433.3,3432.1,3.3839]
[1718721148244,3.579125,3433.3,3432.1,3.3839]
[1718721148472,2.91265,3433.3,3432.1,3.3839]
[1718721148672,2.91265,3433.3,3432.2,0.066]
[1718721149076,2.91275,3433.2,3432.2,0.066]
[1718721149575,2.91298,3433.0,3432.2,0.066]
[1718721149767,2.91223,3433.8,3432.2,0.066]
[1718721149961,2.91257,3433.4,3432.2,0.066]
[1718721150175,2.91288,3433.1,3432.2,0.066]
[1718721150581,2.91291,3433.0,3432.2,0.066]
[1718721150768,2.91299,3432.9,3432.2,0.066]
[1718721150964,2.91257,3433.4,3432.2,0.066]
[1718721151167,0.55,3433.3,3432.2,0.066]
[1718721151378,2.91207,3434.0,3432.2,0.066]
[1718721151686,2.90975,3436.8,3435.0,2.9112]
[1718721151994,2.90975,3436.8,3434.0,2.91204]
[1718721151995,2.90848,3438.3,3436.5,2.087]
[1718721151996,0.04609438,3436.7,3436.5,2.087]
[1718721152194,0.04609438,3436.7,3435.2,3.0]
[1718721152569,0.04609438,3436.7,3434.5,5.91159]
[1718721152570,2.95587438,3436.7,3434.5,5.91159]
[1718721152897,2.90988,3436.6,3434.6,0.879159]
[1718721153107,2.91009,3436.4,3434.6,0.879159]
[1718721153315,0.04609438,3436.7,3436.3,2.087]
[1718721153510,0.04609438,3436.7,3436.5,2.767]
[1718721154282,2.90853,3438.2,3436.5,2.767]
[1718721154283,2.90893,3437.7,3436.5,2.767]
[1718721154482,2.5085,3438.4,3436.0,0.32386521]
[1718721154483,0.290893,3437.6,3436.0,0.32386521]
[1718721154703,2.90926,3437.3,3436.2,2.767]
[1718721154902,2.9096,3436.9,3436.2,2.767]
[1718721155222,2.9098,3436.7,3434.9,0.56310769]
[1718721155408,2.3439,3437.0,3435.0,2.767]
[1718721155745,0.290926,3437.2,3435.5,2.767]
[1718721155937,2.348,3437.7,3435.5,2.767]
[1718721155938,2.91011,3436.3,3435.5,2.767]
[1718721156214,2.90962,3436.9,3435.6,3.0]
[1718721156426,2.90921,3437.4,3436.0,2.767]
[1718721156577,0.841678,3438.3,3436.1,3.0]
[1718721156578,2.90912,3437.5,3436.1,3.0]
[1718721156784,0.841678,3438.3,3436.1,3.0]
[1718721156785,3.491026,3437.4,3436.1,3.0]
[1718721157048,2.9093,3437.3,3436.1,3.0]
[1718721157242,2.9086,3438.1,3436.1,3.0]
[1718721157535,2.90915,3437.5,3436.1,3.0]
[1718721157742,2.90945,3437.1,3436.1,3.0]
[1718721157906,2.90918,3437.4,3436.1,3.0]
[1718721158102,0.841678,3438.3,3436.5,2.767]
[1718721158325,2.90893,3437.7,3436.5,2.767]
[1718721158616,2.90918,3437.4,3436.5,2.767]
[1718721158838,2.90936,3437.2,3436.5,2.767]
[1718721159040,0.581854,3437.2,3436.5,2.767]
[1718721159216,2.90896,3437.7,3436.5,2.767]
[1718721159415,2.90902,3437.6,3436.5,2.767]
[1718721159625,2.90886,3437.8,3436.5,2.767]
[1718721160029,2.90866,3438.1,3436.5,2.767]
[1718721160030,2.90897,3437.7,3436.5,2.767]
[1718721160337,0.290897,3437.6,3436.5,2.767]
[1718721160536,0.825611,3438.4,3437.3,2.767]
[1718721160697,2.90822,3438.6,3437.3,2.767]
[1718721160901,2.90842,3438.3,3437.4,3.0]
[1718721161135,2.90903,3437.6,3437.4,0.30309771]
[1718721161338,2.90903,3437.6,3436.8,2.767]
[1718721161339,2.90903,3437.6,3436.9,3.0]
[1718721161569,0.290799,3438.7,3436.8,0.30545064]
[1718721161570,2.90926,3437.3,3436.8,0.30545064]
[1718721161702,2.90861,3438.1,3436.3,2.767]
[1718721161703,2.90939,3437.2,3436.3,2.767]
[1718721162035,2.90908,3437.6,3436.4,3.0]
[1718721162236,2.90927,3437.3,3436.4,3.0]
[1718721162402,2.3796,3438.6,3436.4,3.0]
[1718721162403,2.90838,3438.4,3436.4,3.0]
[1718721162605,2.9095,3437.1,3436.4,3.0]
[1718721162824,2.90977,3436.7,3436.4,3.0]
[1718721163116,2.90897,3437.7,3436.4,3.0]
[1718721163117,0.345918,3437.1,3436.4,3.0]
[1718721163316,3.198919,3438.7,3435.4,0.29884436]
[1718721163317,2.9085,3438.2,3436.3,2.767]
[1718721163522,3.45859,3438.1,3436.4,3.0]
[1718721163733,2.90909,3437.5,3436.4,3.0]
[1718721163937,2.90834,3438.4,3436.4,3.0]
[1718721164153,2.90886,3437.8,3436.4,3.0]
[1718721164308,2.90943,3437.1,3436.4,3.0]
[1718721164504,2.90904,3437.6,3436.4,3.0]
[1718721164737,2.90915,3437.5,3436.4,3.0]
[1718721164902,2.90886,3437.8,3436.4,3.0]
[1718721165102,2.9091,3437.5,3436.4,3.0]
[1718721165303,2.90894,3437.7,3436.4,3.0]
[1718721165304,0.581804,3437.4,3436.4,3.0]
[1718721165554,2.90886,3437.8,3436.4,3.0]
[1718721165707,0.89207949,3438.3,3437.1,2.767]
[1718721166047,3.80049949,3438.3,3437.1,2.767]
[1718721166254,2.90851,3438.2,3437.2,3.0]
[1718721166400,2.90833,3438.4,3437.2,3.0]
[1718721166605,2.90811,3438.7,3437.2,3.0]
[1718721166847,2.90853,3438.2,3437.2,3.0]
[1718721167051,2.90884,3437.8,3437.2,3.0]
[1718721167207,2.90778,3439.1,3437.2,3.0]
[1718721167551,2.90848,3438.3,3437.2,3.0]
[1718721167850,2.90878,3437.9,3437.2,3.0]
[1718721168026,2.90878,3437.9,3436.0,3.20227]
[1718721168027,2.90921,3437.4,3436.6,2.767]
[1718721168265,2.90921,3437.4,3436.7,3.0]
[1718721168266,2.90917,3437.4,3436.7,3.0]
[1718721168415,2.90923,3437.4,3436.7,3.0]
[1718721168747,0.581824,3437.4,3436.7,3.0]
[1718721168903,2.90895,3437.7,3436.7,3.0]
[1718721169113,2.90926,3437.3,3436.7,3.0]
[1718721169317,2.90909,3437.5,3436.7,3.0]
[1718721169519,2.90921,3437.4,3436.7,3.0]
[1718721169721,2.90908,3437.6,3436.7,3.0]
[1718721170009,2.90834,3438.4,3436.7,3.0]
[1718721170206,0.290834,3438.3,3436.8,0.7519]
[1718721170451,2.90811,3438.7,3437.1,2.767]
[1718721170773,0.522908,3439.0,3437.2,3.0]
[1718721170774,2.90855,3438.2,3437.2,3.0]
[1718721170908,2.9084,3438.4,3437.2,3.0]
[1718721171531,2.9086,3438.1,3437.2,3.0]
[1718721171743,2.908,3438.8,3437.2,3.0]
[1718721171904,2.90874,3438.0,3437.2,3.0]
[1718721172138,2.90858,3438.1,3437.2,3.0]
[1718721172364,2.90874,3438.0,3437.2,3.0]
[1718721172546,2.90885,3437.8,3437.1,2.767]
[1718721173072,2.90874,3438.0,3437.1,2.767]
[1718721173270,2.90888,3437.8,3437.1,2.767]
[1718721173674,2.90834,3438.4,3437.1,2.767]
[1718721173880,2.90894,3437.7,3437.1,2.767]
[1718721174172,2.90867,3438.0,3437.1,2.767]
[1718721174374,2.90901,3437.6,3437.1,2.767]
[1718721174574,2.90909,3437.5,3437.1,2.767]
[1718721174759,0.290834,3438.3,3437.1,2.767]
[1718721174963,2.90853,3438.2,3437.2,0.2767]
[1718721175151,2.90858,3438.1,3437.1,2.767]
[1718721175474,2.90876,3437.9,3437.1,2.767]
[1718721175796,2.90859,3438.1,3437.1,2.767]
[1718721175979,2.90859,3438.1,3437.2,0.2767]
[1718721176467,2.90868,3438.0,3437.2,0.2767]
[1718721176785,2.90842,3438.3,3437.2,0.2767]
[1718721176994,2.90817,3438.6,3437.7,2.767]
[1718721177482,2.90825,3438.5,3437.7,2.767]
[1718721177665,2.90833,3438.4,3437.7,2.767]
[1718721178077,2.90826,3438.5,3437.7,2.767]
[1718721178378,2.90811,3438.7,3437.7,2.767]
[1718721178579,2.90818,3438.6,3437.7,2.767]
[1718721179343,2.90787,3439.0,3437.7,2.767]
[1718721179560,2.90809,3438.7,3437.7,2.767]
[1718721179757,2.90816,3438.6,3437.7,2.767]
[1718721179988,2.90799,3438.8,3437.7,2.767]
[1718721180609,2.90742,3439.5,3438.2,2.767]
[1718721180914,2.90774,3439.1,3438.2,2.767]
[1718721181217,2.90712,3439.9,3438.2,2.767]
[1718721181354,2.4213,3440.2,3437.8,1.752]
[1718721181355,2.90724,3439.7,3438.8,2.767]
[1718721181691,2.90764,3439.3,3438.8,2.767]
[1718721181853,2.90764,3439.3,3438.3,5.767]
[1718721182055,2.90738,3439.6,3438.3,2.767]
[1718721182056,2.90748,3439.4,3438.3,2.767]
[1718721182283,0.581452,3439.5,3438.3,3.3437]
[1718721182593,2.90724,3439.7,3438.3,3.3437]
[1718721182757,2.90724,3439.7,3438.3,2.767]
[1718721183085,2.90689,3440.1,3438.3,2.767]
[1718721183086,2.90766,3439.2,3438.3,2.767]
[1718721183333,2.90759,3439.3,3438.3,2.767]
[1718721183530,2.4213,3440.2,3438.3,3.07016731]
[1718721183531,2.90722,3439.8,3438.3,3.07016731]
[1718721183651,2.90713,3439.9,3438.8,2.767]
[1718721183855,2.90714,3439.8,3438.8,2.767]
[1718721184251,2.3561,3440.9,3439.3,2.767]
[1718721184252,2.90682,3440.2,3439.3,2.767]
[1718721184456,3.488236,3440.1,3439.3,2.767]
[1718721184690,2.90689,3440.1,3439.3,2.767]
[1718721184894,2.90672,3440.4,3439.3,2.767]
[1718721185251,2.3034,3441.3,3439.3,2.767]
[1718721185486,2.3034,3441.3,3439.8,2.767]
[1718721185487,2.90613,3441.0,3439.8,2.767]
[1718721185671,0.23034,3441.2,3439.8,2.767]
[1718721185672,3.13638,3441.2,3439.8,2.767]
[1718721185877,0.23034,3441.2,3439.8,2.767]
[1718721186080,2.9063,3440.8,3439.8,2.767]
[1718721186298,2.90665,3440.4,3439.8,2.767]
[1718721186610,0.313624,3441.1,3438.8,0.36640366]
[1718721186611,2.90696,3440.1,3438.8,0.36640366]
[1718721186758,2.90696,3440.1,3438.7,2.767]
[1718721186959,2.90696,3440.1,3438.1,2.9085]
[1718721186960,2.90654,3440.6,3439.2,2.767]
[1718721187175,5.20945,3441.1,3439.2,2.767]
[1718721187176,2.90656,3440.5,3439.2,3.15255366]
[1718721187389,3.487926,3440.4,3439.2,3.15255366]
[1718721187558,2.90647,3440.6,3439.2,3.15255366]
[1718721187758,2.90618,3441.0,3439.3,0.40305366]
[1718721187967,1.070958,3440.9,3439.3,0.71830903]
[1718721188211,0.520958,3440.9,3439.7,2.767]
[1718721188773,2.363,3441.4,3439.7,2.767]
[1718721188774,2.90614,3441.0,3439.7,2.767]
[1718721188986,2.90614,3441.0,3439.3,2.15505366]
[1718721188987,2.363,3441.4,3440.2,2.767]
[1718721189159,3.05064803,3442.3,3440.2,2.767]
[1718721189160,2.90572,3441.5,3440.2,2.767]
[1718721189362,2.363,3441.9,3440.7,2.767]
[1718721189363,0.290758,3441.9,3440.7,2.767]
[1718721189663,3.196138,3441.9,3440.7,2.767]
[1718721189873,0.00228,3442.0,3440.7,2.767]
[1718721190081,0.00228,3442.0,3440.8,3.0]
[1718721190279,2.90537,3441.9,3440.8,3.0]
[1718721190487,2.90545,3441.8,3440.8,3.0]
[1718721190691,2.90545,3441.8,3440.9,0.5767]
[1718721190943,2.90547,3441.8,3440.9,0.5767]
[1718721191164,2.90758,3442.0,3440.9,0.5767]
[1718721191165,0.00228,3442.0,3440.9,0.5767]
[1718721191467,0.00228,3442.0,3440.8,3.0]
[1718721191468,2.90454,3442.9,3441.9,2.767]
[1718721191758,2.90454,3442.9,3441.0,0.69248699]
[1718721191759,2.343,3443.9,3441.4,2.767]
[1718721191907,2.90412,3443.4,3441.0,0.9034]
[1718721192246,3.0763,3443.8,3441.0,0.9034]
[1718721192435,2.90495,3442.4,3441.0,0.9034]
[1718721192604,2.90477,3442.7,3441.0,0.9034]
[1718721192804,0.290403,3443.4,3441.1,0.66704]
[1718721193000,2.90485,3442.6,3441.4,2.767]
[1718721193206,2.90469,3442.7,3441.5,0.2767]
[1718721193441,2.90471,3442.7,3441.5,0.2767]
[1718721193643,0.3194433,3443.3,3441.6,0.05810411]
[1718721193949,2.9047,3442.7,3441.7,0.05809914]
[1718721194104,2.9042,3443.3,3441.7,3.0]
[1718721194306,2.90493,3442.5,3441.7,3.96704]
[1718721194506,2.9042,3443.3,3441.1,2.767]
[1718721194507,2.90447,3443.0,3441.1,2.767]
[1718721194723,2.90447,3443.0,3441.2,3.0]
[1718721194724,2.90482,3442.6,3441.2,3.0]
[1718721194922,2.90513,3442.2,3441.2,3.0]
[1718721195182,2.90521,3442.1,3441.2,3.0]
[1718721195335,2.9042,3443.3,3441.2,3.0]
[1718721195523,2.90497,3442.4,3441.2,3.0]
[1718721195725,2.90488,3442.5,3441.2,3.0]
[1718721195925,2.90545,3441.8,3441.0,0.9034]
[1718721196160,2.90505,3442.3,3441.0,0.9034]
[1718721196321,2.90528,3442.1,3441.0,0.9034]
[1718721196664,2.90471,3442.7,3441.0,0.9034]
[1718721196665,2.90545,3441.8,3441.0,0.9034]
[1718721196855,2.9055,3441.8,3441.0,0.9034]
[1718721197053,2.9057,3441.6,3441.0,0.9034]
[1718721197561,2.90472,3442.7,3441.0,0.9034]
[1718721197764,2.90521,3442.1,3441.1,2.767]
[1718721197968,0.2667,3442.8,3441.2,1.78396679]
[1718721198137,0.2667,3442.8,3441.6,2.767]
[1718721198349,3.1947,3443.2,3441.8,1.752]
[1718721198649,2.90418,3443.4,3442.1,2.767]
[1718721198963,2.90419,3443.3,3442.2,0.03350924]
[1718721199127,2.7011,3444.2,3442.1,2.767]
[1718721199328,0.27011,3444.1,3441.7,0.9034]
[1718721199561,2.90366,3444.0,3441.7,3.9034]
[1718721199888,2.90405,3443.5,3442.2,1.752]
[1718721200184,2.90378,3443.8,3442.2,1.752]
[1718721200382,2.90402,3443.5,3442.3,0.0161138]
[1718721200686,0.27011,3444.1,3442.3,0.91909334]
[1718721200687,2.90371,3443.9,3442.3,0.91909334]
[1718721200835,2.90402,3443.5,3442.3,1.44720933]
[1718721201024,2.90437,3443.1,3442.3,0.9034]
[1718721201365,2.90351,3444.1,3442.3,0.9034]
[1718721201536,2.90343,3444.2,3441.8,2.90545]
[1718721201537,3.13290737,3444.5,3443.6,0.9034]
[1718721201738,3.13290737,3444.5,3443.6,3.9034]
[1718721201739,3.13291737,3444.5,3443.6,3.9034]
[1718721202059,3.13291737,3444.5,3442.2,5.9051]
[1718721202060,2.90379,3443.8,3442.3,0.9034]
[1718721202387,2.90363,3444.0,3442.6,2.767]
[1718721202527,2.90352,3444.1,3442.7,3.0]
[1718721202843,0.22965737,3444.5,3442.8,1.752]
[1718721202844,2.90342,3444.3,3442.8,1.752]
[1718721203040,2.9036,3444.0,3443.1,3.6704]
[1718721203353,2.90326,3444.4,3443.2,0.41011556]
[1718721203664,0.22965737,3444.5,3444.1,0.9034]
[1718721203837,2.90257,3445.3,3444.1,0.9034]
[1718721204040,2.5666,3446.5,3444.2,0.04042376]
[1718721204252,3.0,3447.2,3444.1,5.6554]
[1718721204253,2.90161,3446.4,3445.1,1.752]
[1718721204462,2.90095,3447.2,3445.0,2.767]
[1718721204684,2.90246,3445.4,3444.6,3.9034]
[1718721204833,2.90256,3445.3,3444.6,3.9034]
[1718721205028,2.9022,3445.7,3444.6,0.9034]
[1718721205029,2.90275,3445.1,3444.6,0.9034]
[1718721205255,2.93214806,3445.2,3444.1,3.0]
[1718721205567,2.90318,3444.5,3444.0,0.9034]
[1718721205750,2.90309,3444.7,3443.5,3.0]
[1718721205982,0.02975554,3444.4,3443.5,1.752]
[1718721206130,2.90377,3443.8,3443.4,0.9034]
[1718721206336,2.90337,3444.3,3443.4,0.9034]
[1718721206337,0.02961852,3443.7,3443.4,0.9034]
[1718721206581,2.90305,3444.7,3442.7,0.9034]
[1718721206866,2.93353819,3443.6,3442.7,0.9034]
[1718721207033,0.55,3444.6,3442.7,0.9034]
[1718721207034,2.90318,3444.5,3442.7,0.9034]
[1718721207366,2.90429,3443.2,3442.2,1.752]
[1718721207531,2.90328,3444.4,3442.3,0.26554]
[1718721207737,2.90461,3442.8,3442.1,0.9034]
[1718721207953,2.90452,3442.9,3442.1,0.9034]
[1718721208268,2.93346529,3442.8,3442.1,0.9034]
[1718721208440,0.02883529,3442.8,3442.1,0.9034]
[1718721208643,0.561298,3444.2,3442.1,0.9034]
[1718721208850,0.56,3665.1,3441.5,0.9034]
[1718721208851,0.02889125,3442.7,3441.5,0.9034]
[1718721209191,0.02889125,3442.7,3441.6,0.04853361]
[1718721209334,2.90452,3442.9,3441.6,0.04853361]
[1718721209535,0.55,3444.1,3441.5,2.6554]
[1718721209536,2.90463,3442.8,3441.5,2.6554]
[1718721209761,2.90479,3442.6,3441.6,0.61284]
[1718721210081,2.90479,3442.6,3441.5,0.9034]
[1718721210082,2.93315191,3442.5,3441.5,0.9034]
[1718721210284,0.02825191,3442.5,3441.6,1.752]
[1718721210482,0.02825191,3442.5,3441.7,0.26554]
[1718721210483,2.90495,3442.4,3441.7,0.26554]
[1718721210662,2.90504,3442.3,3441.6,0.06721446]
[1718721210871,0.02814307,3442.3,3441.7,0.06721251]
[1718721211060,2.90428,3443.2,3441.7,0.06721251]
[1718721211061,2.90452,3443.0,3441.8,0.05803302]
[1718721211258,0.0279667,3442.2,3441.8,0.33609757]
[1718721211482,2.90453,3442.9,3441.8,0.33609757]
[1718721211483,2.90407,3443.5,3441.9,1.752]
[1718721211658,3.0,3444.0,3442.0,0.05809186]
[1718721211860,0.02787676,3443.4,3442.1,0.18100919]
[1718721212056,2.90473,3442.7,3441.7,0.06721251]
[1718721212258,2.90486,3442.5,3441.8,0.05790091]
[1718721212485,2.90501,3442.4,3441.9,0.0672086]
[1718721212818,2.90528,3442.0,3441.9,0.0672086]
[1718721213260,5.8384599,3442.0,3441.9,0.0672086]
[1718721213460,8.7437399,3442.0,3441.9,0.0672086]
[1718721213671,9.90861989,3442.0,3441.9,0.0672086]
[1718721213889,4.09805989,3442.0,3441.9,0.0672086]
[1718721214090,0.0278999,3442.0,3441.9,0.0672086]
[1718721214406,5.8384599,3442.0,3441.9,0.0672086]
[1718721214545,2.90528,3442.0,3441.9,0.0672086]
[1718721214750,5.81056,3442.0,3441.9,0.0672086]
[1718721214944,5.838344,3442.0,3441.9,0.0672086]
[1718721215159,9.6179784,3442.0,3441.9,0.0672086]
[1718721215365,2.90544,3441.9,3439.8,0.292]
[1718721215591,2.90544,3441.9,3439.3,0.9706]
[1718721215592,2.90624,3440.9,3440.0,0.292]
[1718721215882,2.9063,3440.8,3440.0,0.292]
[1718721216085,2.90638,3440.7,3440.0,0.292]
[1718721216270,2.9065,3440.6,3440.0,0.292]
[1718721216460,0.02706058,3440.6,3439.5,0.292]
[1718721216645,2.90673,3440.3,3439.7,0.292]
[1718721216845,2.93365681,3440.5,3439.7,0.292]
[1718721217146,0.02669402,3440.2,3439.7,0.292]
[1718721217351,0.02663195,3440.1,3439.7,0.292]
[1718721217649,2.90672,3440.3,3439.7,0.292]
[1718721217878,0.02662662,3440.0,3439.4,0.292]
[1718721218067,2.90655,3440.5,3439.4,0.292]
[1718721218068,2.90669,3440.4,3439.4,0.292]
[1718721218397,0.02663035,3439.9,3439.4,0.292]
[1718721218684,0.02666285,3440.3,3439.4,0.292]
[1718721218883,0.02666285,3440.3,3439.4,0.59346]
[1718721219087,2.90684,3440.2,3439.5,0.0580846]
[1718721219293,0.02667611,3440.2,3439.5,0.0580846]
[1718721219463,0.02667611,3440.2,3439.7,0.292]
[1718721219669,2.90638,3440.7,3439.8,0.05811412]
[1718721219850,0.02616469,3440.1,3439.8,0.05811412]
[1718721220150,2.90647,3440.6,3439.9,0.292]
[1718721220151,2.90646,3440.6,3439.9,0.292]
[1718721220560,2.90691,3440.1,3439.9,0.292]
[1718721220777,0.02628148,3440.0,3439.9,0.292]
[1718721220997,2.93325148,3440.0,3439.4,0.292]
[1718721221294,0.02628148,3440.0,3439.4,0.89346]
[1718721221492,2.90631,3440.8,3439.4,0.89346]
[1718721221493,2.90669,3440.4,3439.6,0.292]
[1718721221789,3.0,3442.1,3439.6,0.292]
[1718721221790,0.02624376,3439.9,3439.6,0.292]
[1718721222091,0.02627412,3439.8,3439.6,0.292]
[1718721222293,2.9063,3440.8,3439.7,0.05813401]
[1718721222584,2.90647,3440.6,3439.8,0.0581328]
[1718721222792,2.90667,3440.4,3439.8,0.0581328]
[1718721223500,2.90655,3440.5,3439.8,0.0581328]
[1718721223993,2.90667,3440.4,3439.8,0.0581328]
[1718721224192,2.90678,3440.3,3439.6,0.292]
[1718721224392,2.90678,3440.3,3439.7,0.05813427]
[1718721224551,2.90678,3440.3,3439.8,0.05813428]
[1718721224762,2.90681,3440.2,3439.7,0.292]
[1718721224962,2.90634,3440.8,3439.7,0.292]
[1718721225167,2.90682,3440.2,3439.7,0.292]
[1718721225487,2.90672,3440.3,3439.8,0.05813994]
[1718721226264,2.90705,3440.0,3439.5,0.292]
[1718721226470,2.90706,3439.9,3439.5,0.292]
[1718721226688,2.90698,3440.0,3439.5,0.292]
[1718721226890,2.90717,3439.8,3439.6,0.292]
[1718721227102,2.90663,3440.4,3439.6,0.292]
[1718721227407,5.90526,3442.1,3439.6,2.044]
[1718721227408,0.64733784,3441.8,3439.6,2.044]
[1718721227574,2.90571,3441.5,3440.1,1.752]
[1718721227775,2.9056,3441.7,3440.4,1.752]
[1718721227998,2.90601,3441.2,3440.6,1.752]
[1718721228206,2.8334,3442.6,3440.4,3.0]
[1718721228378,2.90641,3440.7,3440.4,3.0]
[1718721228703,2.95560398,3442.4,3440.3,1.3685]
[1718721228872,2.90607,3441.1,3440.3,1.3685]
[1718721229073,2.90571,3441.5,3440.4,1.77092796]
[1718721229289,2.9058,3441.4,3440.5,0.37206009]
[1718721229865,0.573837,3442.3,3440.5,0.37206009]
[1718721229866,2.90527,3442.1,3440.6,1.752]
[1718721230070,2.90545,3441.8,3440.8,1.752]
[1718721230408,2.90545,3441.8,3440.9,0.05810749]
[1718721230570,2.90471,3442.7,3440.9,0.05810749]
[1718721230571,2.90555,3441.7,3440.9,0.05810749]
[1718721230904,2.90617,3441.0,3440.5,3.0]
[1718721231101,2.9062,3441.0,3440.3,1.0765]
[1718721231300,2.9062,3441.0,3440.4,0.05812521]
[1718721231468,2.906,3441.2,3440.4,0.05812521]
[1718721231671,2.90606,3441.1,3440.4,0.05812521]
[1718721231868,2.90613,3441.0,3440.4,0.05812521]
[1718721232066,2.90645,3440.7,3440.3,1.0765]
[1718721232530,2.90618,3441.0,3440.3,1.0765]
[1718721232807,2.90638,3440.7,3440.0,0.292]
[1718721233012,2.90671,3440.4,3440.0,0.292]
[1718721233365,2.90655,3440.5,3440.0,0.292]
[1718721233566,2.90648,3440.6,3440.0,0.33111888]
[1718721233818,2.90673,3440.3,3439.9,0.292]
[1718721233979,2.90655,3440.5,3439.9,0.292]
[1718721234196,2.90633,3440.8,3439.9,0.292]
[1718721234372,2.9063,3440.8,3440.0,0.61982849]
[1718721234920,6.0,3442.3,3440.0,0.30777849]
[1718721235078,2.90664,3440.4,3440.0,0.30777849]
[1718721235280,2.90664,3440.4,3440.0,0.01577849]
[1718721235503,2.90657,3440.5,3440.0,0.01577849]
[1718721235825,2.90657,3440.5,3440.0,0.054938]
[1718721236121,2.9065,3440.6,3440.0,0.054938]
[1718721236334,2.9063,3440.8,3440.0,0.054938]
[1718721236335,2.90629,3440.9,3440.0,0.7892818]
[1718721236472,5.90506,3442.3,3440.0,2.5412818]
[1718721236473,2.9057,3441.6,3440.0,2.5412818]
[1718721236681,2.90613,3441.0,3440.2,1.752]
[1718721236873,0.3196121,3441.6,3440.3,0.60906138]
[1718721237103,2.90636,3440.8,3440.3,0.60906138]
[1718721237371,2.90602,3441.2,3440.3,0.0549332]
[1718721237372,2.90613,3441.0,3440.3,0.0549332]
[1718721238426,2.90605,3441.1,3440.3,0.0549332]
[1718721238636,2.90605,3441.1,3440.3,0.26482652]
[1718721238913,2.90601,3441.2,3440.3,0.26482652]
[1718721239112,2.90614,3441.0,3440.3,0.26482652]
[1718721239411,2.90606,3441.1,3440.3,0.26482652]
[1718721239806,2.90563,3441.6,3440.3,2.01682652]
[1718721239987,2.90573,3441.5,3440.3,1.8069332]
[1718721240186,2.90573,3441.5,3440.4,2.8285]
[1718721240413,2.90581,3441.4,3440.5,5.09527332]
[1718721240617,2.9054,3441.9,3440.5,0.28834332]
[1718721240788,2.90614,3441.0,3440.4,1.0765]
[1718721240993,2.90646,3440.7,3440.2,0.292]
[1718721241225,2.90647,3440.6,3440.2,0.292]
[1718721241400,2.589,3442.4,3440.2,0.292]
[1718721241600,2.589,3442.4,3439.9,1.0765]
[1718721241601,2.9057,3441.6,3439.9,1.0765]
[1718721241808,2.90547,3441.8,3439.9,1.0765]
[1718721242012,0.290547,3441.7,3439.9,1.0765]
[1718721242204,2.90642,3440.7,3440.0,0.04112525]
[1718721242405,2.90672,3440.4,3439.9,1.0765]
[1718721242626,2.9068,3440.3,3438.8,0.292]
[1718721242811,2.9068,3440.3,3439.2,0.292]
[1718721243315,2.90712,3439.9,3439.2,0.292]
[1718721243540,2.90698,3440.0,3439.2,0.292]
[1718721243718,2.90698,3440.0,3439.3,0.292]
[1718721243719,2.90706,3439.9,3439.3,0.292]
[1718721244799,2.90642,3440.7,3438.7,2.8285]
[1718721244800,2.90698,3440.0,3439.4,0.292]
[1718721245126,2.90734,3439.6,3439.4,0.292]
[1718721245334,2.90739,3439.5,3439.4,0.292]
[1718721245626,5.81478,3439.5,3439.4,0.292]
[1718721245835,2.90739,3439.5,3438.8,0.292]
[1718721246129,2.90625,3440.9,3438.7,1.0765]
[1718721246130,2.9069,3440.1,3439.0,0.292]
[1718721246314,2.90725,3439.7,3439.0,0.292]
[1718721246525,0.573929,3440.5,3439.0,0.292]
[1718721246723,2.90684,3440.2,3439.0,0.292]
[1718721246923,2.90689,3440.1,3439.0,0.292]
[1718721247118,2.90706,3439.9,3439.2,0.292]